Workbook

Sheet Cockpit
F1: Fit
A2: P0 | B2: =Input!B2 -> 0.1027 | E2: PIce | F2: 0.1042115377 | G2: =Pice/K2 -> 0.07817472537 | K2: =1013.125/760 -> 1.333059211
A3: Jshelf | B3: -0.01 | C3: =T3.1+K3 -> 273.14 | E3: K1 | F3: 0.3500147411 | K3: 273.15
A4: N | B4: 61 | E4: K2 | F4: 2.469992776e-05
A5: DVial | B5: 22 | C5: =B5/10 -> 2.2
A6: Vial thickness | B6: 1 | C6: =B6/10 -> 0.1 | E6: RMS | F6: =Input!H1*100 -> 21.18911422
A7: Ap | B7: =(C5/2-C6)^2*PI() -> 3.141592654
A8: Vchamber | B8: 56 | C8: =V/1000 -> 0.056 | E8: TIce | F8: =6145/(24.305-LN(Pice))-K3 -> -41.84219655
A9: Filling height | B9: 8 | C9: =B9/10 -> 0.8 | E9: Tshelf | F9: =T3.1 -> -0.01
E11: Rp | F11: =_Kon1*3600*18*V/N/Ap/46.74 -> 141.8015417 | J11: Leak rate | K11: 0.005
E12: EX | F12: =_Kon2 -> 2.469992776e-05 | K12: =K11/V -> 8.928571429e-05 | L12: =K12/K2 -> 6.697805587e-05
K13: =K12*B19 -> 695828.5714
A14: Filling | B14: 3
A15: Concentration | B15: 0.05
A16: Solid Content | B16: =N*B14*B15 -> 9.15 | C16: =B16/1000 -> 0.00915
A18: Pressure Rise | B18: =MAX(Input!B:B)-Input!B2 -> 0.00392 | C18: =B18*1000 -> 3.92
A19: Dt | B19: =(MAX(Input!A:A)-Input!A2)*24*3600 -> 7793280000
A20: ER | B20: =C18*C8*0.7803/B19/C3/C16 -> 8.794456838e-12

Sheet Input
A1: Time | B1: PChamber | C1: Tice | D1: t | E1: p(t),model | F1: p(TIce) | H1: =SUM(H2:H1000) -> 0.2118911422
A2: 0 | B2: 0.1027 | C2: =Cockpit!F$8 -> -41.84219655 | D2: =A2/1000 -> 0 | E2: =Pice-(Pice-p0)*EXP(-D2*_Kon1*Cockpit!$C$3)+_Kon2*D2 -> 0.1027 | F2: =EXP(24.30592-6144.96/(C2+273.15)) -> 0.1043254958 | H2: =SQRT((E2-B2)^2) -> 0
A3: 100 | B3: 0.1027 | C3: =Cockpit!F$8 -> -41.84219655 | D3: =A3/1000 -> 0.1 | E3: =Pice-(Pice-p0)*EXP(-D3*_Kon1*Cockpit!$C$3)+_Kon2*D3 -> 0.1042139012 | F3: =EXP(24.30592-6144.96/(C3+273.15)) -> 0.1043254958 | H3: =SQRT((E3-B3)^2) -> 0.001513901157
A4: 200 | B4: 0.1027 | C4: =Cockpit!F$8 -> -41.84219655 | D4: 0.2 | E4: =Pice-(Pice-p0)*EXP(-D4*_Kon1*Cockpit!$C$3)+_Kon2*D4 -> 0.1042164777 | F4: 0.1043254958 | H4: 0.001516477662
A5: 300 | B5: 0.1027 | C5: =Cockpit!F$8 -> -41.84219655 | D5: 0.3 | E5: =Pice-(Pice-p0)*EXP(-D5*_Kon1*Cockpit!$C$3)+_Kon2*D5 -> 0.1042189477 | F5: 0.1043254958 | H5: 0.001518947663
A6: 400 | B6: 0.1027 | C6: =Cockpit!F$8 -> -41.84219655 | D6: 0.4 | E6: =Pice-(Pice-p0)*EXP(-D6*_Kon1*Cockpit!$C$3)+_Kon2*D6 -> 0.1042214177 | F6: 0.1043254958 | H6: 0.001521417655
A7: 500 | B7: 0.10294 | C7: =Cockpit!F$8 -> -41.84219655 | D7: 0.5 | E7: =Pice-(Pice-p0)*EXP(-D7*_Kon1*Cockpit!$C$3)+_Kon2*D7 -> 0.1042238876 | F7: 0.1043254958 | H7: 0.001283887648
A8: 600 | B8: 0.10294 | C8: =Cockpit!F$8 -> -41.84219655 | D8: 0.6 | E8: =Pice-(Pice-p0)*EXP(-D8*_Kon1*Cockpit!$C$3)+_Kon2*D8 -> 0.1042263576 | F8: 0.1043254958 | H8: 0.001286357641
A9: 700 | B9: 0.10319 | C9: =Cockpit!F$8 -> -41.84219655 | D9: 0.7 | E9: =Pice-(Pice-p0)*EXP(-D9*_Kon1*Cockpit!$C$3)+_Kon2*D9 -> 0.1042288276 | F9: 0.1043254958 | H9: 0.001038827634
A10: 800 | B10: 0.10343 | C10: =Cockpit!F$8 -> -41.84219655 | D10: 0.8 | E10: =Pice-(Pice-p0)*EXP(-D10*_Kon1*Cockpit!$C$3)+_Kon2*D10 -> 0.1042312976 | F10: 0.1043254958 | H10: 0.0008012976265
A11: 900 | B11: 0.10343 | C11: =Cockpit!F$8 -> -41.84219655 | D11: 0.9 | E11: =Pice-(Pice-p0)*EXP(-D11*_Kon1*Cockpit!$C$3)+_Kon2*D11 -> 0.1042337676 | F11: 0.1043254958 | H11: 0.0008037676193
A12: 1000 | B12: 0.10343 | C12: =Cockpit!F$8 -> -41.84219655 | D12: 1 | E12: =Pice-(Pice-p0)*EXP(-D12*_Kon1*Cockpit!$C$3)+_Kon2*D12 -> 0.1042362376 | F12: 0.1043254958 | H12: 0.0008062376121
A13: 1100 | B13: 0.10343 | C13: =Cockpit!F$8 -> -41.84219655 | D13: 1.1 | E13: =Pice-(Pice-p0)*EXP(-D13*_Kon1*Cockpit!$C$3)+_Kon2*D13 -> 0.1042387076 | F13: 0.1043254958 | H13: 0.0008087076049
A14: 1200 | B14: 0.10343 | C14: =Cockpit!F$8 -> -41.84219655 | D14: 1.2 | E14: =Pice-(Pice-p0)*EXP(-D14*_Kon1*Cockpit!$C$3)+_Kon2*D14 -> 0.1042411776 | F14: 0.1043254958 | H14: 0.0008111775976
A15: 1300 | B15: 0.10319 | C15: =Cockpit!F$8 -> -41.84219655 | D15: 1.3 | E15: =Pice-(Pice-p0)*EXP(-D15*_Kon1*Cockpit!$C$3)+_Kon2*D15 -> 0.1042436476 | F15: 0.1043254958 | H15: 0.00105364759
A16: 1400 | B16: 0.10319 | C16: =Cockpit!F$8 -> -41.84219655 | D16: 1.4 | E16: =Pice-(Pice-p0)*EXP(-D16*_Kon1*Cockpit!$C$3)+_Kon2*D16 -> 0.1042461176 | F16: 0.1043254958 | H16: 0.001056117583
A17: 1500 | B17: 0.10319 | C17: =Cockpit!F$8 -> -41.84219655 | D17: 1.5 | E17: =Pice-(Pice-p0)*EXP(-D17*_Kon1*Cockpit!$C$3)+_Kon2*D17 -> 0.1042485876 | F17: 0.1043254958 | H17: 0.001058587576
A18: 1600 | B18: 0.10319 | C18: =Cockpit!F$8 -> -41.84219655 | D18: 1.6 | E18: =Pice-(Pice-p0)*EXP(-D18*_Kon1*Cockpit!$C$3)+_Kon2*D18 -> 0.1042510576 | F18: 0.1043254958 | H18: 0.001061057569
A19: 1700 | B19: 0.10319 | C19: =Cockpit!F$8 -> -41.84219655 | D19: 1.7 | E19: =Pice-(Pice-p0)*EXP(-D19*_Kon1*Cockpit!$C$3)+_Kon2*D19 -> 0.1042535276 | F19: 0.1043254958 | H19: 0.001063527562
A20: 1800 | B20: 0.10319 | C20: =Cockpit!F$8 -> -41.84219655 | D20: 1.8 | E20: =Pice-(Pice-p0)*EXP(-D20*_Kon1*Cockpit!$C$3)+_Kon2*D20 -> 0.1042559976 | F20: 0.1043254958 | H20: 0.001065997554
A21: 1900 | B21: 0.10343 | C21: =Cockpit!F$8 -> -41.84219655 | D21: 1.9 | E21: =Pice-(Pice-p0)*EXP(-D21*_Kon1*Cockpit!$C$3)+_Kon2*D21 -> 0.1042584675 | F21: 0.1043254958 | H21: 0.0008284675471
A22: 2000 | B22: 0.10343 | C22: =Cockpit!F$8 -> -41.84219655 | D22: 2 | E22: =Pice-(Pice-p0)*EXP(-D22*_Kon1*Cockpit!$C$3)+_Kon2*D22 -> 0.1042609375 | F22: 0.1043254958 | H22: 0.0008309375398
A23: 2100 | B23: 0.10343 | C23: =Cockpit!F$8 -> -41.84219655 | D23: 2.1 | E23: =Pice-(Pice-p0)*EXP(-D23*_Kon1*Cockpit!$C$3)+_Kon2*D23 -> 0.1042634075 | F23: 0.1043254958 | H23: 0.0008334075326
A24: 2200 | B24: 0.10343 | C24: =Cockpit!F$8 -> -41.84219655 | D24: 2.2 | E24: =Pice-(Pice-p0)*EXP(-D24*_Kon1*Cockpit!$C$3)+_Kon2*D24 -> 0.1042658775 | F24: 0.1043254958 | H24: 0.0008358775254
A25: 2300 | B25: 0.10368 | C25: =Cockpit!F$8 -> -41.84219655 | D25: 2.3 | E25: =Pice-(Pice-p0)*EXP(-D25*_Kon1*Cockpit!$C$3)+_Kon2*D25 -> 0.1042683475 | F25: 0.1043254958 | H25: 0.0005883475182
A26: 2400 | B26: 0.10368 | C26: =Cockpit!F$8 -> -41.84219655 | D26: 2.4 | E26: =Pice-(Pice-p0)*EXP(-D26*_Kon1*Cockpit!$C$3)+_Kon2*D26 -> 0.1042708175 | F26: 0.1043254958 | H26: 0.000590817511
A27: 2500 | B27: 0.10368 | C27: =Cockpit!F$8 -> -41.84219655 | D27: 2.5 | E27: =Pice-(Pice-p0)*EXP(-D27*_Kon1*Cockpit!$C$3)+_Kon2*D27 -> 0.1042732875 | F27: 0.1043254958 | H27: 0.0005932875037
A28: 2600 | B28: 0.10368 | C28: =Cockpit!F$8 -> -41.84219655 | D28: 2.6 | E28: =Pice-(Pice-p0)*EXP(-D28*_Kon1*Cockpit!$C$3)+_Kon2*D28 -> 0.1042757575 | F28: 0.1043254958 | H28: 0.0005957574965
A29: 2700 | B29: 0.10368 | C29: =Cockpit!F$8 -> -41.84219655 | D29: 2.7 | E29: =Pice-(Pice-p0)*EXP(-D29*_Kon1*Cockpit!$C$3)+_Kon2*D29 -> 0.1042782275 | F29: 0.1043254958 | H29: 0.0005982274893
A30: 2800 | B30: 0.10343 | C30: =Cockpit!F$8 -> -41.84219655 | D30: 2.8 | E30: =Pice-(Pice-p0)*EXP(-D30*_Kon1*Cockpit!$C$3)+_Kon2*D30 -> 0.1042806975 | F30: 0.1043254958 | H30: 0.0008506974821
A31: 2900 | B31: 0.10343 | C31: =Cockpit!F$8 -> -41.84219655 | D31: 2.9 | E31: =Pice-(Pice-p0)*EXP(-D31*_Kon1*Cockpit!$C$3)+_Kon2*D31 -> 0.1042831675 | F31: 0.1043254958 | H31: 0.0008531674748
A32: 3000 | B32: 0.10368 | C32: =Cockpit!F$8 -> -41.84219655 | D32: 3 | E32: =Pice-(Pice-p0)*EXP(-D32*_Kon1*Cockpit!$C$3)+_Kon2*D32 -> 0.1042856375 | F32: 0.1043254958 | H32: 0.0006056374676
A33: 3100 | B33: 0.10368 | C33: =Cockpit!F$8 -> -41.84219655 | D33: 3.1 | E33: =Pice-(Pice-p0)*EXP(-D33*_Kon1*Cockpit!$C$3)+_Kon2*D33 -> 0.1042881075 | F33: 0.1043254958 | H33: 0.0006081074604
A34: 3200 | B34: 0.10368 | C34: =Cockpit!F$8 -> -41.84219655 | D34: 3.2 | E34: =Pice-(Pice-p0)*EXP(-D34*_Kon1*Cockpit!$C$3)+_Kon2*D34 -> 0.1042905775 | F34: 0.1043254958 | H34: 0.0006105774532
A35: 3300 | B35: 0.10343 | C35: =Cockpit!F$8 -> -41.84219655 | D35: 3.3 | E35: =Pice-(Pice-p0)*EXP(-D35*_Kon1*Cockpit!$C$3)+_Kon2*D35 -> 0.1042930474 | F35: 0.1043254958 | H35: 0.0008630474459
A36: 3400 | B36: 0.10343 | C36: =Cockpit!F$8 -> -41.84219655 | D36: 3.4 | E36: =Pice-(Pice-p0)*EXP(-D36*_Kon1*Cockpit!$C$3)+_Kon2*D36 -> 0.1042955174 | F36: 0.1043254958 | H36: 0.0008655174387
A37: 3500 | B37: 0.10343 | C37: =Cockpit!F$8 -> -41.84219655 | D37: 3.5 | E37: =Pice-(Pice-p0)*EXP(-D37*_Kon1*Cockpit!$C$3)+_Kon2*D37 -> 0.1042979874 | F37: 0.1043254958 | H37: 0.0008679874315
A38: 3600 | B38: 0.10343 | C38: =Cockpit!F$8 -> -41.84219655 | D38: 3.6 | E38: =Pice-(Pice-p0)*EXP(-D38*_Kon1*Cockpit!$C$3)+_Kon2*D38 -> 0.1043004574 | F38: 0.1043254958 | H38: 0.0008704574243
A39: 3700 | B39: 0.10343 | C39: =Cockpit!F$8 -> -41.84219655 | D39: 3.7 | E39: =Pice-(Pice-p0)*EXP(-D39*_Kon1*Cockpit!$C$3)+_Kon2*D39 -> 0.1043029274 | F39: 0.1043254958 | H39: 0.000872927417
A40: 3800 | B40: 0.10343 | C40: =Cockpit!F$8 -> -41.84219655 | D40: 3.8 | E40: =Pice-(Pice-p0)*EXP(-D40*_Kon1*Cockpit!$C$3)+_Kon2*D40 -> 0.1043053974 | F40: 0.1043254958 | H40: 0.0008753974098
A41: 3900 | B41: 0.10343 | C41: =Cockpit!F$8 -> -41.84219655 | D41: 3.9 | E41: =Pice-(Pice-p0)*EXP(-D41*_Kon1*Cockpit!$C$3)+_Kon2*D41 -> 0.1043078674 | F41: 0.1043254958 | H41: 0.0008778674026
A42: 4000 | B42: 0.10343 | C42: =Cockpit!F$8 -> -41.84219655 | D42: 4 | E42: =Pice-(Pice-p0)*EXP(-D42*_Kon1*Cockpit!$C$3)+_Kon2*D42 -> 0.1043103374 | F42: 0.1043254958 | H42: 0.0008803373954
A43: 4100 | B43: 0.10343 | C43: =Cockpit!F$8 -> -41.84219655 | D43: 4.1 | E43: =Pice-(Pice-p0)*EXP(-D43*_Kon1*Cockpit!$C$3)+_Kon2*D43 -> 0.1043128074 | F43: 0.1043254958 | H43: 0.0008828073881
A44: 4200 | B44: 0.10343 | C44: =Cockpit!F$8 -> -41.84219655 | D44: 4.2 | E44: =Pice-(Pice-p0)*EXP(-D44*_Kon1*Cockpit!$C$3)+_Kon2*D44 -> 0.1043152774 | F44: 0.1043254958 | H44: 0.0008852773809
A45: 4300 | B45: 0.10343 | C45: =Cockpit!F$8 -> -41.84219655 | D45: 4.3 | E45: =Pice-(Pice-p0)*EXP(-D45*_Kon1*Cockpit!$C$3)+_Kon2*D45 -> 0.1043177474 | F45: 0.1043254958 | H45: 0.0008877473737
A46: 4400 | B46: 0.10343 | C46: =Cockpit!F$8 -> -41.84219655 | D46: 4.4 | E46: =Pice-(Pice-p0)*EXP(-D46*_Kon1*Cockpit!$C$3)+_Kon2*D46 -> 0.1043202174 | F46: 0.1043254958 | H46: 0.0008902173665
A47: 4500 | B47: 0.10343 | C47: =Cockpit!F$8 -> -41.84219655 | D47: 4.5 | E47: =Pice-(Pice-p0)*EXP(-D47*_Kon1*Cockpit!$C$3)+_Kon2*D47 -> 0.1043226874 | F47: 0.1043254958 | H47: 0.0008926873592
A48: 4600 | B48: 0.10343 | C48: =Cockpit!F$8 -> -41.84219655 | D48: 4.6 | E48: =Pice-(Pice-p0)*EXP(-D48*_Kon1*Cockpit!$C$3)+_Kon2*D48 -> 0.1043251574 | F48: 0.1043254958 | H48: 0.000895157352
A49: 4700 | B49: 0.10343 | C49: =Cockpit!F$8 -> -41.84219655 | D49: 4.7 | E49: =Pice-(Pice-p0)*EXP(-D49*_Kon1*Cockpit!$C$3)+_Kon2*D49 -> 0.1043276273 | F49: 0.1043254958 | H49: 0.0008976273448
A50: 4800 | B50: 0.10343 | C50: =Cockpit!F$8 -> -41.84219655 | D50: 4.8 | E50: =Pice-(Pice-p0)*EXP(-D50*_Kon1*Cockpit!$C$3)+_Kon2*D50 -> 0.1043300973 | F50: 0.1043254958 | H50: 0.0009000973376
A51: 4900 | B51: 0.10343 | C51: =Cockpit!F$8 -> -41.84219655 | D51: 4.9 | E51: =Pice-(Pice-p0)*EXP(-D51*_Kon1*Cockpit!$C$3)+_Kon2*D51 -> 0.1043325673 | F51: 0.1043254958 | H51: 0.0009025673303
A52: 5000 | B52: 0.10343 | C52: =Cockpit!F$8 -> -41.84219655 | D52: 5 | E52: =Pice-(Pice-p0)*EXP(-D52*_Kon1*Cockpit!$C$3)+_Kon2*D52 -> 0.1043350373 | F52: 0.1043254958 | H52: 0.0009050373231
A53: 5100 | B53: 0.10343 | C53: =Cockpit!F$8 -> -41.84219655 | D53: 5.1 | E53: =Pice-(Pice-p0)*EXP(-D53*_Kon1*Cockpit!$C$3)+_Kon2*D53 -> 0.1043375073 | F53: 0.1043254958 | H53: 0.0009075073159
A54: 5200 | B54: 0.10343 | C54: =Cockpit!F$8 -> -41.84219655 | D54: 5.2 | E54: =Pice-(Pice-p0)*EXP(-D54*_Kon1*Cockpit!$C$3)+_Kon2*D54 -> 0.1043399773 | F54: 0.1043254958 | H54: 0.0009099773087
A55: 5300 | B55: 0.10343 | C55: =Cockpit!F$8 -> -41.84219655 | D55: 5.3 | E55: =Pice-(Pice-p0)*EXP(-D55*_Kon1*Cockpit!$C$3)+_Kon2*D55 -> 0.1043424473 | F55: 0.1043254958 | H55: 0.0009124473014
A56: 5400 | B56: 0.10343 | C56: =Cockpit!F$8 -> -41.84219655 | D56: 5.4 | E56: =Pice-(Pice-p0)*EXP(-D56*_Kon1*Cockpit!$C$3)+_Kon2*D56 -> 0.1043449173 | F56: 0.1043254958 | H56: 0.0009149172942
A57: 5500 | B57: 0.10368 | C57: =Cockpit!F$8 -> -41.84219655 | D57: 5.5 | E57: =Pice-(Pice-p0)*EXP(-D57*_Kon1*Cockpit!$C$3)+_Kon2*D57 -> 0.1043473873 | F57: 0.1043254958 | H57: 0.000667387287
A58: 5600 | B58: 0.10368 | C58: =Cockpit!F$8 -> -41.84219655 | D58: 5.6 | E58: =Pice-(Pice-p0)*EXP(-D58*_Kon1*Cockpit!$C$3)+_Kon2*D58 -> 0.1043498573 | F58: 0.1043254958 | H58: 0.0006698572798
A59: 5700 | B59: 0.10368 | C59: =Cockpit!F$8 -> -41.84219655 | D59: 5.7 | E59: =Pice-(Pice-p0)*EXP(-D59*_Kon1*Cockpit!$C$3)+_Kon2*D59 -> 0.1043523273 | F59: 0.1043254958 | H59: 0.0006723272725
A60: 5800 | B60: 0.10368 | C60: =Cockpit!F$8 -> -41.84219655 | D60: 5.8 | E60: =Pice-(Pice-p0)*EXP(-D60*_Kon1*Cockpit!$C$3)+_Kon2*D60 -> 0.1043547973 | F60: 0.1043254958 | H60: 0.0006747972653
A61: 5900 | B61: 0.10368 | C61: =Cockpit!F$8 -> -41.84219655 | D61: 5.9 | E61: =Pice-(Pice-p0)*EXP(-D61*_Kon1*Cockpit!$C$3)+_Kon2*D61 -> 0.1043572673 | F61: 0.1043254958 | H61: 0.0006772672581
A62: 6000 | B62: 0.10368 | C62: =Cockpit!F$8 -> -41.84219655 | D62: 6 | E62: =Pice-(Pice-p0)*EXP(-D62*_Kon1*Cockpit!$C$3)+_Kon2*D62 -> 0.1043597373 | F62: 0.1043254958 | H62: 0.0006797372509
A63: 6100 | B63: 0.10368 | C63: =Cockpit!F$8 -> -41.84219655 | D63: 6.1 | E63: =Pice-(Pice-p0)*EXP(-D63*_Kon1*Cockpit!$C$3)+_Kon2*D63 -> 0.1043622072 | F63: 0.1043254958 | H63: 0.0006822072436
A64: 6200 | B64: 0.10368 | C64: =Cockpit!F$8 -> -41.84219655 | D64: 6.2 | E64: =Pice-(Pice-p0)*EXP(-D64*_Kon1*Cockpit!$C$3)+_Kon2*D64 -> 0.1043646772 | F64: 0.1043254958 | H64: 0.0006846772364
A65: 6300 | B65: 0.10368 | C65: =Cockpit!F$8 -> -41.84219655 | D65: 6.3 | E65: =Pice-(Pice-p0)*EXP(-D65*_Kon1*Cockpit!$C$3)+_Kon2*D65 -> 0.1043671472 | F65: 0.1043254958 | H65: 0.0006871472292
A66: 6400 | B66: 0.10392 | C66: =Cockpit!F$8 -> -41.84219655 | D66: 6.4 | E66: =Pice-(Pice-p0)*EXP(-D66*_Kon1*Cockpit!$C$3)+_Kon2*D66 -> 0.1043696172 | F66: 0.1043254958 | H66: 0.000449617222
A67: 6500 | B67: 0.10392 | C67: =Cockpit!F$8 -> -41.84219655 | D67: =A67/1000 -> 6.5 | E67: =Pice-(Pice-p0)*EXP(-D67*_Kon1*Cockpit!$C$3)+_Kon2*D67 -> 0.1043720872 | F67: =EXP(24.30592-6144.96/(C67+273.15)) -> 0.1043254958 | H67: =SQRT((E67-B67)^2) -> 0.0004520872148
A68: 6600 | B68: 0.10392 | C68: =Cockpit!F$8 -> -41.84219655 | D68: 6.6 | E68: =Pice-(Pice-p0)*EXP(-D68*_Kon1*Cockpit!$C$3)+_Kon2*D68 -> 0.1043745572 | F68: 0.1043254958 | H68: 0.0004545572075
A69: 6700 | B69: 0.10392 | C69: =Cockpit!F$8 -> -41.84219655 | D69: 6.7 | E69: =Pice-(Pice-p0)*EXP(-D69*_Kon1*Cockpit!$C$3)+_Kon2*D69 -> 0.1043770272 | F69: 0.1043254958 | H69: 0.0004570272003
A70: 6800 | B70: 0.10392 | C70: =Cockpit!F$8 -> -41.84219655 | D70: 6.8 | E70: =Pice-(Pice-p0)*EXP(-D70*_Kon1*Cockpit!$C$3)+_Kon2*D70 -> 0.1043794972 | F70: 0.1043254958 | H70: 0.0004594971931
A71: 6900 | B71: 0.10417 | C71: =Cockpit!F$8 -> -41.84219655 | D71: 6.9 | E71: =Pice-(Pice-p0)*EXP(-D71*_Kon1*Cockpit!$C$3)+_Kon2*D71 -> 0.1043819672 | F71: 0.1043254958 | H71: 0.0002119671859
A72: 7000 | B72: 0.10417 | C72: =Cockpit!F$8 -> -41.84219655 | D72: 7 | E72: =Pice-(Pice-p0)*EXP(-D72*_Kon1*Cockpit!$C$3)+_Kon2*D72 -> 0.1043844372 | F72: 0.1043254958 | H72: 0.0002144371786
A73: 7100 | B73: 0.10392 | C73: =Cockpit!F$8 -> -41.84219655 | D73: 7.1 | E73: =Pice-(Pice-p0)*EXP(-D73*_Kon1*Cockpit!$C$3)+_Kon2*D73 -> 0.1043869072 | F73: 0.1043254958 | H73: 0.0004669071714
A74: 7200 | B74: 0.10392 | C74: =Cockpit!F$8 -> -41.84219655 | D74: 7.2 | E74: =Pice-(Pice-p0)*EXP(-D74*_Kon1*Cockpit!$C$3)+_Kon2*D74 -> 0.1043893772 | F74: 0.1043254958 | H74: 0.0004693771642
A75: 7300 | B75: 0.10368 | C75: =Cockpit!F$8 -> -41.84219655 | D75: 7.3 | E75: =Pice-(Pice-p0)*EXP(-D75*_Kon1*Cockpit!$C$3)+_Kon2*D75 -> 0.1043918472 | F75: 0.1043254958 | H75: 0.000711847157
A76: 7400 | B76: 0.10368 | C76: =Cockpit!F$8 -> -41.84219655 | D76: 7.4 | E76: =Pice-(Pice-p0)*EXP(-D76*_Kon1*Cockpit!$C$3)+_Kon2*D76 -> 0.1043943171 | F76: 0.1043254958 | H76: 0.0007143171497
A77: 7500 | B77: 0.10368 | C77: =Cockpit!F$8 -> -41.84219655 | D77: 7.5 | E77: =Pice-(Pice-p0)*EXP(-D77*_Kon1*Cockpit!$C$3)+_Kon2*D77 -> 0.1043967871 | F77: 0.1043254958 | H77: 0.0007167871425
A78: 7600 | B78: 0.10368 | C78: =Cockpit!F$8 -> -41.84219655 | D78: 7.6 | E78: =Pice-(Pice-p0)*EXP(-D78*_Kon1*Cockpit!$C$3)+_Kon2*D78 -> 0.1043992571 | F78: 0.1043254958 | H78: 0.0007192571353
A79: 7700 | B79: 0.10368 | C79: =Cockpit!F$8 -> -41.84219655 | D79: 7.7 | E79: =Pice-(Pice-p0)*EXP(-D79*_Kon1*Cockpit!$C$3)+_Kon2*D79 -> 0.1044017271 | F79: 0.1043254958 | H79: 0.0007217271281
A80: 7800 | B80: 0.10392 | C80: =Cockpit!F$8 -> -41.84219655 | D80: 7.8 | E80: =Pice-(Pice-p0)*EXP(-D80*_Kon1*Cockpit!$C$3)+_Kon2*D80 -> 0.1044041971 | F80: 0.1043254958 | H80: 0.0004841971208
A81: 7900 | B81: 0.10392 | C81: =Cockpit!F$8 -> -41.84219655 | D81: 7.9 | E81: =Pice-(Pice-p0)*EXP(-D81*_Kon1*Cockpit!$C$3)+_Kon2*D81 -> 0.1044066671 | F81: 0.1043254958 | H81: 0.0004866671136
A82: 8000 | B82: 0.10392 | C82: =Cockpit!F$8 -> -41.84219655 | D82: 8 | E82: =Pice-(Pice-p0)*EXP(-D82*_Kon1*Cockpit!$C$3)+_Kon2*D82 -> 0.1044091371 | F82: 0.1043254958 | H82: 0.0004891371064
A83: 8100 | B83: 0.10417 | C83: =Cockpit!F$8 -> -41.84219655 | D83: 8.1 | E83: =Pice-(Pice-p0)*EXP(-D83*_Kon1*Cockpit!$C$3)+_Kon2*D83 -> 0.1044116071 | F83: 0.1043254958 | H83: 0.0002416070992
A84: 8200 | B84: 0.10417 | C84: =Cockpit!F$8 -> -41.84219655 | D84: 8.2 | E84: =Pice-(Pice-p0)*EXP(-D84*_Kon1*Cockpit!$C$3)+_Kon2*D84 -> 0.1044140771 | F84: 0.1043254958 | H84: 0.0002440770919
A85: 8300 | B85: 0.10417 | C85: =Cockpit!F$8 -> -41.84219655 | D85: 8.3 | E85: =Pice-(Pice-p0)*EXP(-D85*_Kon1*Cockpit!$C$3)+_Kon2*D85 -> 0.1044165471 | F85: 0.1043254958 | H85: 0.0002465470847
A86: 8400 | B86: 0.10417 | C86: =Cockpit!F$8 -> -41.84219655 | D86: 8.4 | E86: =Pice-(Pice-p0)*EXP(-D86*_Kon1*Cockpit!$C$3)+_Kon2*D86 -> 0.1044190171 | F86: 0.1043254958 | H86: 0.0002490170775
A87: 8500 | B87: 0.10417 | C87: =Cockpit!F$8 -> -41.84219655 | D87: 8.5 | E87: =Pice-(Pice-p0)*EXP(-D87*_Kon1*Cockpit!$C$3)+_Kon2*D87 -> 0.1044214871 | F87: 0.1043254958 | H87: 0.0002514870703
A88: 8600 | B88: 0.10417 | C88: =Cockpit!F$8 -> -41.84219655 | D88: 8.6 | E88: =Pice-(Pice-p0)*EXP(-D88*_Kon1*Cockpit!$C$3)+_Kon2*D88 -> 0.1044239571 | F88: 0.1043254958 | H88: 0.000253957063
A89: 8700 | B89: 0.10417 | C89: =Cockpit!F$8 -> -41.84219655 | D89: 8.7 | E89: =Pice-(Pice-p0)*EXP(-D89*_Kon1*Cockpit!$C$3)+_Kon2*D89 -> 0.1044264271 | F89: 0.1043254958 | H89: 0.0002564270558
A90: 8800 | B90: 0.10417 | C90: =Cockpit!F$8 -> -41.84219655 | D90: 8.8 | E90: =Pice-(Pice-p0)*EXP(-D90*_Kon1*Cockpit!$C$3)+_Kon2*D90 -> 0.104428897 | F90: 0.1043254958 | H90: 0.0002588970486
A91: 8900 | B91: 0.10417 | C91: =Cockpit!F$8 -> -41.84219655 | D91: 8.9 | E91: =Pice-(Pice-p0)*EXP(-D91*_Kon1*Cockpit!$C$3)+_Kon2*D91 -> 0.104431367 | F91: 0.1043254958 | H91: 0.0002613670414
A92: 9000 | B92: 0.10417 | C92: =Cockpit!F$8 -> -41.84219655 | D92: 9 | E92: =Pice-(Pice-p0)*EXP(-D92*_Kon1*Cockpit!$C$3)+_Kon2*D92 -> 0.104433837 | F92: 0.1043254958 | H92: 0.0002638370341
A93: 9100 | B93: 0.10417 | C93: =Cockpit!F$8 -> -41.84219655 | D93: 9.1 | E93: =Pice-(Pice-p0)*EXP(-D93*_Kon1*Cockpit!$C$3)+_Kon2*D93 -> 0.104436307 | F93: 0.1043254958 | H93: 0.0002663070269
A94: 9200 | B94: 0.10417 | C94: =Cockpit!F$8 -> -41.84219655 | D94: 9.2 | E94: =Pice-(Pice-p0)*EXP(-D94*_Kon1*Cockpit!$C$3)+_Kon2*D94 -> 0.104438777 | F94: 0.1043254958 | H94: 0.0002687770197
A95: 9300 | B95: 0.10417 | C95: =Cockpit!F$8 -> -41.84219655 | D95: 9.3 | E95: =Pice-(Pice-p0)*EXP(-D95*_Kon1*Cockpit!$C$3)+_Kon2*D95 -> 0.104441247 | F95: 0.1043254958 | H95: 0.0002712470125
A96: 9400 | B96: 0.10441 | C96: =Cockpit!F$8 -> -41.84219655 | D96: 9.4 | E96: =Pice-(Pice-p0)*EXP(-D96*_Kon1*Cockpit!$C$3)+_Kon2*D96 -> 0.104443717 | F96: 0.1043254958 | H96: 3.371700524e-05
A97: 9500 | B97: 0.10441 | C97: =Cockpit!F$8 -> -41.84219655 | D97: 9.5 | E97: =Pice-(Pice-p0)*EXP(-D97*_Kon1*Cockpit!$C$3)+_Kon2*D97 -> 0.104446187 | F97: 0.1043254958 | H97: 3.618699802e-05
A98: 9600 | B98: 0.10441 | C98: =Cockpit!F$8 -> -41.84219655 | D98: 9.6 | E98: =Pice-(Pice-p0)*EXP(-D98*_Kon1*Cockpit!$C$3)+_Kon2*D98 -> 0.104448657 | F98: 0.1043254958 | H98: 3.865699079e-05
A99: 9700 | B99: 0.10466 | C99: =Cockpit!F$8 -> -41.84219655 | D99: 9.7 | E99: =Pice-(Pice-p0)*EXP(-D99*_Kon1*Cockpit!$C$3)+_Kon2*D99 -> 0.104451127 | F99: 0.1043254958 | H99: 0.0002088730164
A100: 9800 | B100: 0.10466 | C100: =Cockpit!F$8 -> -41.84219655 | D100: 9.8 | E100: =Pice-(Pice-p0)*EXP(-D100*_Kon1*Cockpit!$C$3)+_Kon2*D100 -> 0.104453597 | F100: 0.1043254958 | H100: 0.0002064030237
A101: 9900 | B101: 0.10466 | C101: =Cockpit!F$8 -> -41.84219655 | D101: 9.9 | E101: =Pice-(Pice-p0)*EXP(-D101*_Kon1*Cockpit!$C$3)+_Kon2*D101 -> 0.104456067 | F101: 0.1043254958 | H101: 0.0002039330309
A102: 10000 | B102: 0.10441 | C102: =Cockpit!F$8 -> -41.84219655 | D102: 10 | E102: =Pice-(Pice-p0)*EXP(-D102*_Kon1*Cockpit!$C$3)+_Kon2*D102 -> 0.104458537 | F102: 0.1043254958 | H102: 4.85369619e-05
A103: 10100 | B103: 0.10417 | C103: =Cockpit!F$8 -> -41.84219655 | D103: 10.1 | E103: =Pice-(Pice-p0)*EXP(-D103*_Kon1*Cockpit!$C$3)+_Kon2*D103 -> 0.104461007 | F103: 0.1043254958 | H103: 0.0002910069547
A104: 10200 | B104: 0.10417 | C104: =Cockpit!F$8 -> -41.84219655 | D104: 10.2 | E104: =Pice-(Pice-p0)*EXP(-D104*_Kon1*Cockpit!$C$3)+_Kon2*D104 -> 0.1044634769 | F104: 0.1043254958 | H104: 0.0002934769474
A105: 10300 | B105: 0.10417 | C105: =Cockpit!F$8 -> -41.84219655 | D105: 10.3 | E105: =Pice-(Pice-p0)*EXP(-D105*_Kon1*Cockpit!$C$3)+_Kon2*D105 -> 0.1044659469 | F105: 0.1043254958 | H105: 0.0002959469402
A106: 10400 | B106: 0.10417 | C106: =Cockpit!F$8 -> -41.84219655 | D106: 10.4 | E106: =Pice-(Pice-p0)*EXP(-D106*_Kon1*Cockpit!$C$3)+_Kon2*D106 -> 0.1044684169 | F106: 0.1043254958 | H106: 0.000298416933
A107: 10500 | B107: 0.10417 | C107: =Cockpit!F$8 -> -41.84219655 | D107: 10.5 | E107: =Pice-(Pice-p0)*EXP(-D107*_Kon1*Cockpit!$C$3)+_Kon2*D107 -> 0.1044708869 | F107: 0.1043254958 | H107: 0.0003008869258
A108: 10600 | B108: 0.10417 | C108: =Cockpit!F$8 -> -41.84219655 | D108: 10.6 | E108: =Pice-(Pice-p0)*EXP(-D108*_Kon1*Cockpit!$C$3)+_Kon2*D108 -> 0.1044733569 | F108: 0.1043254958 | H108: 0.0003033569186
A109: 10700 | B109: 0.10417 | C109: =Cockpit!F$8 -> -41.84219655 | D109: 10.7 | E109: =Pice-(Pice-p0)*EXP(-D109*_Kon1*Cockpit!$C$3)+_Kon2*D109 -> 0.1044758269 | F109: 0.1043254958 | H109: 0.0003058269113
A110: 10800 | B110: 0.10417 | C110: =Cockpit!F$8 -> -41.84219655 | D110: 10.8 | E110: =Pice-(Pice-p0)*EXP(-D110*_Kon1*Cockpit!$C$3)+_Kon2*D110 -> 0.1044782969 | F110: 0.1043254958 | H110: 0.0003082969041
A111: 10900 | B111: 0.10417 | C111: =Cockpit!F$8 -> -41.84219655 | D111: 10.9 | E111: =Pice-(Pice-p0)*EXP(-D111*_Kon1*Cockpit!$C$3)+_Kon2*D111 -> 0.1044807669 | F111: 0.1043254958 | H111: 0.0003107668969
A112: 11000 | B112: 0.10441 | C112: =Cockpit!F$8 -> -41.84219655 | D112: 11 | E112: =Pice-(Pice-p0)*EXP(-D112*_Kon1*Cockpit!$C$3)+_Kon2*D112 -> 0.1044832369 | F112: 0.1043254958 | H112: 7.323688965e-05
A113: 11100 | B113: 0.10441 | C113: =Cockpit!F$8 -> -41.84219655 | D113: 11.1 | E113: =Pice-(Pice-p0)*EXP(-D113*_Kon1*Cockpit!$C$3)+_Kon2*D113 -> 0.1044857069 | F113: 0.1043254958 | H113: 7.570688243e-05
A114: 11200 | B114: 0.10441 | C114: =Cockpit!F$8 -> -41.84219655 | D114: 11.2 | E114: =Pice-(Pice-p0)*EXP(-D114*_Kon1*Cockpit!$C$3)+_Kon2*D114 -> 0.1044881769 | F114: 0.1043254958 | H114: 7.81768752e-05
A115: 11300 | B115: 0.10441 | C115: =Cockpit!F$8 -> -41.84219655 | D115: 11.3 | E115: =Pice-(Pice-p0)*EXP(-D115*_Kon1*Cockpit!$C$3)+_Kon2*D115 -> 0.1044906469 | F115: 0.1043254958 | H115: 8.064686798e-05
A116: 11400 | B116: 0.10441 | C116: =Cockpit!F$8 -> -41.84219655 | D116: 11.4 | E116: =Pice-(Pice-p0)*EXP(-D116*_Kon1*Cockpit!$C$3)+_Kon2*D116 -> 0.1044931169 | F116: 0.1043254958 | H116: 8.311686075e-05
A117: 11500 | B117: 0.10466 | C117: =Cockpit!F$8 -> -41.84219655 | D117: 11.5 | E117: =Pice-(Pice-p0)*EXP(-D117*_Kon1*Cockpit!$C$3)+_Kon2*D117 -> 0.1044955869 | F117: 0.1043254958 | H117: 0.0001644131465
A118: 11600 | B118: 0.10466 | C118: =Cockpit!F$8 -> -41.84219655 | D118: 11.6 | E118: =Pice-(Pice-p0)*EXP(-D118*_Kon1*Cockpit!$C$3)+_Kon2*D118 -> 0.1044980568 | F118: 0.1043254958 | H118: 0.0001619431537
A119: 11700 | B119: 0.10466 | C119: =Cockpit!F$8 -> -41.84219655 | D119: 11.7 | E119: =Pice-(Pice-p0)*EXP(-D119*_Kon1*Cockpit!$C$3)+_Kon2*D119 -> 0.1045005268 | F119: 0.1043254958 | H119: 0.0001594731609
A120: 11800 | B120: 0.10466 | C120: =Cockpit!F$8 -> -41.84219655 | D120: 11.8 | E120: =Pice-(Pice-p0)*EXP(-D120*_Kon1*Cockpit!$C$3)+_Kon2*D120 -> 0.1045029968 | F120: 0.1043254958 | H120: 0.0001570031681
A121: 11900 | B121: 0.10466 | C121: =Cockpit!F$8 -> -41.84219655 | D121: 11.9 | E121: =Pice-(Pice-p0)*EXP(-D121*_Kon1*Cockpit!$C$3)+_Kon2*D121 -> 0.1045054668 | F121: 0.1043254958 | H121: 0.0001545331754
A122: 12000 | B122: 0.10466 | C122: =Cockpit!F$8 -> -41.84219655 | D122: 12 | E122: =Pice-(Pice-p0)*EXP(-D122*_Kon1*Cockpit!$C$3)+_Kon2*D122 -> 0.1045079368 | F122: 0.1043254958 | H122: 0.0001520631826
A123: 12100 | B123: 0.10441 | C123: =Cockpit!F$8 -> -41.84219655 | D123: 12.1 | E123: =Pice-(Pice-p0)*EXP(-D123*_Kon1*Cockpit!$C$3)+_Kon2*D123 -> 0.1045104068 | F123: 0.1043254958 | H123: 0.0001004068102
A124: 12200 | B124: 0.10441 | C124: =Cockpit!F$8 -> -41.84219655 | D124: 12.2 | E124: =Pice-(Pice-p0)*EXP(-D124*_Kon1*Cockpit!$C$3)+_Kon2*D124 -> 0.1045128768 | F124: 0.1043254958 | H124: 0.000102876803
A125: 12300 | B125: 0.10466 | C125: =Cockpit!F$8 -> -41.84219655 | D125: 12.3 | E125: =Pice-(Pice-p0)*EXP(-D125*_Kon1*Cockpit!$C$3)+_Kon2*D125 -> 0.1045153468 | F125: 0.1043254958 | H125: 0.0001446532043
A126: 12400 | B126: 0.10466 | C126: =Cockpit!F$8 -> -41.84219655 | D126: 12.4 | E126: =Pice-(Pice-p0)*EXP(-D126*_Kon1*Cockpit!$C$3)+_Kon2*D126 -> 0.1045178168 | F126: 0.1043254958 | H126: 0.0001421832115
A127: 12500 | B127: 0.10441 | C127: =Cockpit!F$8 -> -41.84219655 | D127: 12.5 | E127: =Pice-(Pice-p0)*EXP(-D127*_Kon1*Cockpit!$C$3)+_Kon2*D127 -> 0.1045202868 | F127: 0.1043254958 | H127: 0.0001102867813
A128: 12600 | B128: 0.10441 | C128: =Cockpit!F$8 -> -41.84219655 | D128: 12.6 | E128: =Pice-(Pice-p0)*EXP(-D128*_Kon1*Cockpit!$C$3)+_Kon2*D128 -> 0.1045227568 | F128: 0.1043254958 | H128: 0.0001127567741
A129: 12700 | B129: 0.10441 | C129: =Cockpit!F$8 -> -41.84219655 | D129: 12.7 | E129: =Pice-(Pice-p0)*EXP(-D129*_Kon1*Cockpit!$C$3)+_Kon2*D129 -> 0.1045252268 | F129: 0.1043254958 | H129: 0.0001152267668
A130: 12800 | B130: 0.10441 | C130: =Cockpit!F$8 -> -41.84219655 | D130: 12.8 | E130: =Pice-(Pice-p0)*EXP(-D130*_Kon1*Cockpit!$C$3)+_Kon2*D130 -> 0.1045276968 | F130: 0.1043254958 | H130: 0.0001176967596
A131: 12900 | B131: 0.10466 | C131: =Cockpit!F$8 -> -41.84219655 | D131: =A131/1000 -> 12.9 | E131: =Pice-(Pice-p0)*EXP(-D131*_Kon1*Cockpit!$C$3)+_Kon2*D131 -> 0.1045301668 | F131: =EXP(24.30592-6144.96/(C131+273.15)) -> 0.1043254958 | H131: =SQRT((E131-B131)^2) -> 0.0001298332476
A132: 13000 | B132: 0.10466 | C132: =Cockpit!F$8 -> -41.84219655 | D132: 13 | E132: =Pice-(Pice-p0)*EXP(-D132*_Kon1*Cockpit!$C$3)+_Kon2*D132 -> 0.1045326367 | F132: 0.1043254958 | H132: 0.0001273632548
A133: 13100 | B133: 0.10466 | C133: =Cockpit!F$8 -> -41.84219655 | D133: 13.1 | E133: =Pice-(Pice-p0)*EXP(-D133*_Kon1*Cockpit!$C$3)+_Kon2*D133 -> 0.1045351067 | F133: 0.1043254958 | H133: 0.0001248932621
A134: 13200 | B134: 0.10441 | C134: =Cockpit!F$8 -> -41.84219655 | D134: 13.2 | E134: =Pice-(Pice-p0)*EXP(-D134*_Kon1*Cockpit!$C$3)+_Kon2*D134 -> 0.1045375767 | F134: 0.1043254958 | H134: 0.0001275767307
A135: 13300 | B135: 0.10441 | C135: =Cockpit!F$8 -> -41.84219655 | D135: 13.3 | E135: =Pice-(Pice-p0)*EXP(-D135*_Kon1*Cockpit!$C$3)+_Kon2*D135 -> 0.1045400467 | F135: 0.1043254958 | H135: 0.0001300467235
A136: 13400 | B136: 0.10441 | C136: =Cockpit!F$8 -> -41.84219655 | D136: 13.4 | E136: =Pice-(Pice-p0)*EXP(-D136*_Kon1*Cockpit!$C$3)+_Kon2*D136 -> 0.1045425167 | F136: 0.1043254958 | H136: 0.0001325167163
A137: 13500 | B137: 0.10417 | C137: =Cockpit!F$8 -> -41.84219655 | D137: 13.5 | E137: =Pice-(Pice-p0)*EXP(-D137*_Kon1*Cockpit!$C$3)+_Kon2*D137 -> 0.1045449867 | F137: 0.1043254958 | H137: 0.000374986709
A138: 13600 | B138: 0.10441 | C138: =Cockpit!F$8 -> -41.84219655 | D138: 13.6 | E138: =Pice-(Pice-p0)*EXP(-D138*_Kon1*Cockpit!$C$3)+_Kon2*D138 -> 0.1045474567 | F138: 0.1043254958 | H138: 0.0001374567018
A139: 13700 | B139: 0.10441 | C139: =Cockpit!F$8 -> -41.84219655 | D139: 13.7 | E139: =Pice-(Pice-p0)*EXP(-D139*_Kon1*Cockpit!$C$3)+_Kon2*D139 -> 0.1045499267 | F139: 0.1043254958 | H139: 0.0001399266946
A140: 13800 | B140: 0.10441 | C140: =Cockpit!F$8 -> -41.84219655 | D140: 13.8 | E140: =Pice-(Pice-p0)*EXP(-D140*_Kon1*Cockpit!$C$3)+_Kon2*D140 -> 0.1045523967 | F140: 0.1043254958 | H140: 0.0001423966874
A141: 13900 | B141: 0.10441 | C141: =Cockpit!F$8 -> -41.84219655 | D141: 13.9 | E141: =Pice-(Pice-p0)*EXP(-D141*_Kon1*Cockpit!$C$3)+_Kon2*D141 -> 0.1045548667 | F141: 0.1043254958 | H141: 0.0001448666801
A142: 14000 | B142: 0.10441 | C142: =Cockpit!F$8 -> -41.84219655 | D142: 14 | E142: =Pice-(Pice-p0)*EXP(-D142*_Kon1*Cockpit!$C$3)+_Kon2*D142 -> 0.1045573367 | F142: 0.1043254958 | H142: 0.0001473366729
A143: 14100 | B143: 0.10441 | C143: =Cockpit!F$8 -> -41.84219655 | D143: 14.1 | E143: =Pice-(Pice-p0)*EXP(-D143*_Kon1*Cockpit!$C$3)+_Kon2*D143 -> 0.1045598067 | F143: 0.1043254958 | H143: 0.0001498066657
A144: 14200 | B144: 0.10441 | C144: =Cockpit!F$8 -> -41.84219655 | D144: 14.2 | E144: =Pice-(Pice-p0)*EXP(-D144*_Kon1*Cockpit!$C$3)+_Kon2*D144 -> 0.1045622767 | F144: 0.1043254958 | H144: 0.0001522766585
A145: 14300 | B145: 0.10441 | C145: =Cockpit!F$8 -> -41.84219655 | D145: 14.3 | E145: =Pice-(Pice-p0)*EXP(-D145*_Kon1*Cockpit!$C$3)+_Kon2*D145 -> 0.1045647467 | F145: 0.1043254958 | H145: 0.0001547466512
A146: 14400 | B146: 0.10441 | C146: =Cockpit!F$8 -> -41.84219655 | D146: 14.4 | E146: =Pice-(Pice-p0)*EXP(-D146*_Kon1*Cockpit!$C$3)+_Kon2*D146 -> 0.1045672166 | F146: 0.1043254958 | H146: 0.000157216644
A147: 14500 | B147: 0.10441 | C147: =Cockpit!F$8 -> -41.84219655 | D147: 14.5 | E147: =Pice-(Pice-p0)*EXP(-D147*_Kon1*Cockpit!$C$3)+_Kon2*D147 -> 0.1045696866 | F147: 0.1043254958 | H147: 0.0001596866368
A148: 14600 | B148: 0.10441 | C148: =Cockpit!F$8 -> -41.84219655 | D148: 14.6 | E148: =Pice-(Pice-p0)*EXP(-D148*_Kon1*Cockpit!$C$3)+_Kon2*D148 -> 0.1045721566 | F148: 0.1043254958 | H148: 0.0001621566296
A149: 14700 | B149: 0.10441 | C149: =Cockpit!F$8 -> -41.84219655 | D149: 14.7 | E149: =Pice-(Pice-p0)*EXP(-D149*_Kon1*Cockpit!$C$3)+_Kon2*D149 -> 0.1045746266 | F149: 0.1043254958 | H149: 0.0001646266223
A150: 14800 | B150: 0.10441 | C150: =Cockpit!F$8 -> -41.84219655 | D150: 14.8 | E150: =Pice-(Pice-p0)*EXP(-D150*_Kon1*Cockpit!$C$3)+_Kon2*D150 -> 0.1045770966 | F150: 0.1043254958 | H150: 0.0001670966151
A151: 14900 | B151: 0.10441 | C151: =Cockpit!F$8 -> -41.84219655 | D151: 14.9 | E151: =Pice-(Pice-p0)*EXP(-D151*_Kon1*Cockpit!$C$3)+_Kon2*D151 -> 0.1045795666 | F151: 0.1043254958 | H151: 0.0001695666079
A152: 15000 | B152: 0.10441 | C152: =Cockpit!F$8 -> -41.84219655 | D152: 15 | E152: =Pice-(Pice-p0)*EXP(-D152*_Kon1*Cockpit!$C$3)+_Kon2*D152 -> 0.1045820366 | F152: 0.1043254958 | H152: 0.0001720366007
A153: 15100 | B153: 0.10441 | C153: =Cockpit!F$8 -> -41.84219655 | D153: 15.1 | E153: =Pice-(Pice-p0)*EXP(-D153*_Kon1*Cockpit!$C$3)+_Kon2*D153 -> 0.1045845066 | F153: 0.1043254958 | H153: 0.0001745065935
A154: 15200 | B154: 0.10441 | C154: =Cockpit!F$8 -> -41.84219655 | D154: 15.2 | E154: =Pice-(Pice-p0)*EXP(-D154*_Kon1*Cockpit!$C$3)+_Kon2*D154 -> 0.1045869766 | F154: 0.1043254958 | H154: 0.0001769765862
A155: 15300 | B155: 0.10441 | C155: =Cockpit!F$8 -> -41.84219655 | D155: 15.3 | E155: =Pice-(Pice-p0)*EXP(-D155*_Kon1*Cockpit!$C$3)+_Kon2*D155 -> 0.1045894466 | F155: 0.1043254958 | H155: 0.000179446579
A156: 15400 | B156: 0.10441 | C156: =Cockpit!F$8 -> -41.84219655 | D156: 15.4 | E156: =Pice-(Pice-p0)*EXP(-D156*_Kon1*Cockpit!$C$3)+_Kon2*D156 -> 0.1045919166 | F156: 0.1043254958 | H156: 0.0001819165718
A157: 15500 | B157: 0.10441 | C157: =Cockpit!F$8 -> -41.84219655 | D157: 15.5 | E157: =Pice-(Pice-p0)*EXP(-D157*_Kon1*Cockpit!$C$3)+_Kon2*D157 -> 0.1045943866 | F157: 0.1043254958 | H157: 0.0001843865646
A158: 15600 | B158: 0.10441 | C158: =Cockpit!F$8 -> -41.84219655 | D158: 15.6 | E158: =Pice-(Pice-p0)*EXP(-D158*_Kon1*Cockpit!$C$3)+_Kon2*D158 -> 0.1045968566 | F158: 0.1043254958 | H158: 0.0001868565573
A159: 15700 | B159: 0.10441 | C159: =Cockpit!F$8 -> -41.84219655 | D159: 15.7 | E159: =Pice-(Pice-p0)*EXP(-D159*_Kon1*Cockpit!$C$3)+_Kon2*D159 -> 0.1045993266 | F159: 0.1043254958 | H159: 0.0001893265501
A160: 15800 | B160: 0.10441 | C160: =Cockpit!F$8 -> -41.84219655 | D160: 15.8 | E160: =Pice-(Pice-p0)*EXP(-D160*_Kon1*Cockpit!$C$3)+_Kon2*D160 -> 0.1046017965 | F160: 0.1043254958 | H160: 0.0001917965429
A161: 15900 | B161: 0.10441 | C161: =Cockpit!F$8 -> -41.84219655 | D161: 15.9 | E161: =Pice-(Pice-p0)*EXP(-D161*_Kon1*Cockpit!$C$3)+_Kon2*D161 -> 0.1046042665 | F161: 0.1043254958 | H161: 0.0001942665357
A162: 16000 | B162: 0.10441 | C162: =Cockpit!F$8 -> -41.84219655 | D162: 16 | E162: =Pice-(Pice-p0)*EXP(-D162*_Kon1*Cockpit!$C$3)+_Kon2*D162 -> 0.1046067365 | F162: 0.1043254958 | H162: 0.0001967365284
A163: 16100 | B163: 0.10441 | C163: =Cockpit!F$8 -> -41.84219655 | D163: 16.1 | E163: =Pice-(Pice-p0)*EXP(-D163*_Kon1*Cockpit!$C$3)+_Kon2*D163 -> 0.1046092065 | F163: 0.1043254958 | H163: 0.0001992065212
A164: 16200 | B164: 0.10441 | C164: =Cockpit!F$8 -> -41.84219655 | D164: 16.2 | E164: =Pice-(Pice-p0)*EXP(-D164*_Kon1*Cockpit!$C$3)+_Kon2*D164 -> 0.1046116765 | F164: 0.1043254958 | H164: 0.000201676514
A165: 16300 | B165: 0.10441 | C165: =Cockpit!F$8 -> -41.84219655 | D165: 16.3 | E165: =Pice-(Pice-p0)*EXP(-D165*_Kon1*Cockpit!$C$3)+_Kon2*D165 -> 0.1046141465 | F165: 0.1043254958 | H165: 0.0002041465068
A166: 16400 | B166: 0.10441 | C166: =Cockpit!F$8 -> -41.84219655 | D166: 16.4 | E166: =Pice-(Pice-p0)*EXP(-D166*_Kon1*Cockpit!$C$3)+_Kon2*D166 -> 0.1046166165 | F166: 0.1043254958 | H166: 0.0002066164995
A167: 16500 | B167: 0.10441 | C167: =Cockpit!F$8 -> -41.84219655 | D167: 16.5 | E167: =Pice-(Pice-p0)*EXP(-D167*_Kon1*Cockpit!$C$3)+_Kon2*D167 -> 0.1046190865 | F167: 0.1043254958 | H167: 0.0002090864923
A168: 16600 | B168: 0.10441 | C168: =Cockpit!F$8 -> -41.84219655 | D168: 16.6 | E168: =Pice-(Pice-p0)*EXP(-D168*_Kon1*Cockpit!$C$3)+_Kon2*D168 -> 0.1046215565 | F168: 0.1043254958 | H168: 0.0002115564851
A169: 16700 | B169: 0.10466 | C169: =Cockpit!F$8 -> -41.84219655 | D169: 16.7 | E169: =Pice-(Pice-p0)*EXP(-D169*_Kon1*Cockpit!$C$3)+_Kon2*D169 -> 0.1046240265 | F169: 0.1043254958 | H169: 3.597352214e-05
A170: 16800 | B170: 0.10466 | C170: =Cockpit!F$8 -> -41.84219655 | D170: 16.8 | E170: =Pice-(Pice-p0)*EXP(-D170*_Kon1*Cockpit!$C$3)+_Kon2*D170 -> 0.1046264965 | F170: 0.1043254958 | H170: 3.350352936e-05
A171: 16900 | B171: 0.10466 | C171: =Cockpit!F$8 -> -41.84219655 | D171: 16.9 | E171: =Pice-(Pice-p0)*EXP(-D171*_Kon1*Cockpit!$C$3)+_Kon2*D171 -> 0.1046289665 | F171: 0.1043254958 | H171: 3.103353659e-05
A172: 17000 | B172: 0.10466 | C172: =Cockpit!F$8 -> -41.84219655 | D172: 17 | E172: =Pice-(Pice-p0)*EXP(-D172*_Kon1*Cockpit!$C$3)+_Kon2*D172 -> 0.1046314365 | F172: 0.1043254958 | H172: 2.856354381e-05
A173: 17100 | B173: 0.10466 | C173: =Cockpit!F$8 -> -41.84219655 | D173: 17.1 | E173: =Pice-(Pice-p0)*EXP(-D173*_Kon1*Cockpit!$C$3)+_Kon2*D173 -> 0.1046339064 | F173: 0.1043254958 | H173: 2.609355104e-05
A174: 17200 | B174: 0.10466 | C174: =Cockpit!F$8 -> -41.84219655 | D174: 17.2 | E174: =Pice-(Pice-p0)*EXP(-D174*_Kon1*Cockpit!$C$3)+_Kon2*D174 -> 0.1046363764 | F174: 0.1043254958 | H174: 2.362355826e-05
A175: 17300 | B175: 0.10466 | C175: =Cockpit!F$8 -> -41.84219655 | D175: 17.3 | E175: =Pice-(Pice-p0)*EXP(-D175*_Kon1*Cockpit!$C$3)+_Kon2*D175 -> 0.1046388464 | F175: 0.1043254958 | H175: 2.115356548e-05
A176: 17400 | B176: 0.10466 | C176: =Cockpit!F$8 -> -41.84219655 | D176: 17.4 | E176: =Pice-(Pice-p0)*EXP(-D176*_Kon1*Cockpit!$C$3)+_Kon2*D176 -> 0.1046413164 | F176: 0.1043254958 | H176: 1.868357271e-05
A177: 17500 | B177: 0.10466 | C177: =Cockpit!F$8 -> -41.84219655 | D177: 17.5 | E177: =Pice-(Pice-p0)*EXP(-D177*_Kon1*Cockpit!$C$3)+_Kon2*D177 -> 0.1046437864 | F177: 0.1043254958 | H177: 1.621357993e-05
A178: 17600 | B178: 0.1049 | C178: =Cockpit!F$8 -> -41.84219655 | D178: 17.6 | E178: =Pice-(Pice-p0)*EXP(-D178*_Kon1*Cockpit!$C$3)+_Kon2*D178 -> 0.1046462564 | F178: 0.1043254958 | H178: 0.0002537435872
A179: 17700 | B179: 0.1049 | C179: =Cockpit!F$8 -> -41.84219655 | D179: 17.7 | E179: =Pice-(Pice-p0)*EXP(-D179*_Kon1*Cockpit!$C$3)+_Kon2*D179 -> 0.1046487264 | F179: 0.1043254958 | H179: 0.0002512735944
A180: 17800 | B180: 0.1049 | C180: =Cockpit!F$8 -> -41.84219655 | D180: 17.8 | E180: =Pice-(Pice-p0)*EXP(-D180*_Kon1*Cockpit!$C$3)+_Kon2*D180 -> 0.1046511964 | F180: 0.1043254958 | H180: 0.0002488036016
A181: 17900 | B181: 0.1049 | C181: =Cockpit!F$8 -> -41.84219655 | D181: 17.9 | E181: =Pice-(Pice-p0)*EXP(-D181*_Kon1*Cockpit!$C$3)+_Kon2*D181 -> 0.1046536664 | F181: 0.1043254958 | H181: 0.0002463336088
A182: 18000 | B182: 0.1049 | C182: =Cockpit!F$8 -> -41.84219655 | D182: 18 | E182: =Pice-(Pice-p0)*EXP(-D182*_Kon1*Cockpit!$C$3)+_Kon2*D182 -> 0.1046561364 | F182: 0.1043254958 | H182: 0.0002438636161
A183: 18100 | B183: 0.1049 | C183: =Cockpit!F$8 -> -41.84219655 | D183: 18.1 | E183: =Pice-(Pice-p0)*EXP(-D183*_Kon1*Cockpit!$C$3)+_Kon2*D183 -> 0.1046586064 | F183: 0.1043254958 | H183: 0.0002413936233
A184: 18200 | B184: 0.1049 | C184: =Cockpit!F$8 -> -41.84219655 | D184: 18.2 | E184: =Pice-(Pice-p0)*EXP(-D184*_Kon1*Cockpit!$C$3)+_Kon2*D184 -> 0.1046610764 | F184: 0.1043254958 | H184: 0.0002389236305
A185: 18300 | B185: 0.1049 | C185: =Cockpit!F$8 -> -41.84219655 | D185: 18.3 | E185: =Pice-(Pice-p0)*EXP(-D185*_Kon1*Cockpit!$C$3)+_Kon2*D185 -> 0.1046635464 | F185: 0.1043254958 | H185: 0.0002364536377
A186: 18400 | B186: 0.1049 | C186: =Cockpit!F$8 -> -41.84219655 | D186: 18.4 | E186: =Pice-(Pice-p0)*EXP(-D186*_Kon1*Cockpit!$C$3)+_Kon2*D186 -> 0.1046660164 | F186: 0.1043254958 | H186: 0.000233983645
A187: 18500 | B187: 0.1049 | C187: =Cockpit!F$8 -> -41.84219655 | D187: 18.5 | E187: =Pice-(Pice-p0)*EXP(-D187*_Kon1*Cockpit!$C$3)+_Kon2*D187 -> 0.1046684863 | F187: 0.1043254958 | H187: 0.0002315136522
A188: 18600 | B188: 0.1049 | C188: =Cockpit!F$8 -> -41.84219655 | D188: 18.6 | E188: =Pice-(Pice-p0)*EXP(-D188*_Kon1*Cockpit!$C$3)+_Kon2*D188 -> 0.1046709563 | F188: 0.1043254958 | H188: 0.0002290436594
A189: 18700 | B189: 0.1049 | C189: =Cockpit!F$8 -> -41.84219655 | D189: 18.7 | E189: =Pice-(Pice-p0)*EXP(-D189*_Kon1*Cockpit!$C$3)+_Kon2*D189 -> 0.1046734263 | F189: 0.1043254958 | H189: 0.0002265736666
A190: 18800 | B190: 0.1049 | C190: =Cockpit!F$8 -> -41.84219655 | D190: 18.8 | E190: =Pice-(Pice-p0)*EXP(-D190*_Kon1*Cockpit!$C$3)+_Kon2*D190 -> 0.1046758963 | F190: 0.1043254958 | H190: 0.0002241036739
A191: 18900 | B191: 0.1049 | C191: =Cockpit!F$8 -> -41.84219655 | D191: 18.9 | E191: =Pice-(Pice-p0)*EXP(-D191*_Kon1*Cockpit!$C$3)+_Kon2*D191 -> 0.1046783663 | F191: 0.1043254958 | H191: 0.0002216336811
A192: 19000 | B192: 0.1049 | C192: =Cockpit!F$8 -> -41.84219655 | D192: 19 | E192: =Pice-(Pice-p0)*EXP(-D192*_Kon1*Cockpit!$C$3)+_Kon2*D192 -> 0.1046808363 | F192: 0.1043254958 | H192: 0.0002191636883
A193: 19100 | B193: 0.1049 | C193: =Cockpit!F$8 -> -41.84219655 | D193: 19.1 | E193: =Pice-(Pice-p0)*EXP(-D193*_Kon1*Cockpit!$C$3)+_Kon2*D193 -> 0.1046833063 | F193: 0.1043254958 | H193: 0.0002166936955
A194: 19200 | B194: 0.10466 | C194: =Cockpit!F$8 -> -41.84219655 | D194: 19.2 | E194: =Pice-(Pice-p0)*EXP(-D194*_Kon1*Cockpit!$C$3)+_Kon2*D194 -> 0.1046857763 | F194: 0.1043254958 | H194: 2.577629725e-05
A195: 19300 | B195: 0.10466 | C195: =Cockpit!F$8 -> -41.84219655 | D195: =A195/1000 -> 19.3 | E195: =Pice-(Pice-p0)*EXP(-D195*_Kon1*Cockpit!$C$3)+_Kon2*D195 -> 0.1046882463 | F195: =EXP(24.30592-6144.96/(C195+273.15)) -> 0.1043254958 | H195: =SQRT((E195-B195)^2) -> 2.824629003e-05
A196: 19400 | B196: 0.10466 | C196: =Cockpit!F$8 -> -41.84219655 | D196: 19.4 | E196: =Pice-(Pice-p0)*EXP(-D196*_Kon1*Cockpit!$C$3)+_Kon2*D196 -> 0.1046907163 | F196: 0.1043254958 | H196: 3.07162828e-05
A197: 19500 | B197: 0.10466 | C197: =Cockpit!F$8 -> -41.84219655 | D197: 19.5 | E197: =Pice-(Pice-p0)*EXP(-D197*_Kon1*Cockpit!$C$3)+_Kon2*D197 -> 0.1046931863 | F197: 0.1043254958 | H197: 3.318627558e-05
A198: 19600 | B198: 0.10441 | C198: =Cockpit!F$8 -> -41.84219655 | D198: 19.6 | E198: =Pice-(Pice-p0)*EXP(-D198*_Kon1*Cockpit!$C$3)+_Kon2*D198 -> 0.1046956563 | F198: 0.1043254958 | H198: 0.0002856562684
A199: 19700 | B199: 0.10441 | C199: =Cockpit!F$8 -> -41.84219655 | D199: 19.7 | E199: =Pice-(Pice-p0)*EXP(-D199*_Kon1*Cockpit!$C$3)+_Kon2*D199 -> 0.1046981263 | F199: 0.1043254958 | H199: 0.0002881262611
A200: 19800 | B200: 0.10466 | C200: =Cockpit!F$8 -> -41.84219655 | D200: 19.8 | E200: =Pice-(Pice-p0)*EXP(-D200*_Kon1*Cockpit!$C$3)+_Kon2*D200 -> 0.1047005963 | F200: 0.1043254958 | H200: 4.05962539e-05
... 704 more rows

Sheet Example 01
B1: pCh 06:36
A2: 00:00:00 | B2: 0.079
A3: 00:00:01 | B3: 0.121
A4: 00:00:02 | B4: 0.203
A5: 00:00:03 | B5: 0.228
A6: 00:00:04 | B6: 0.239
A7: 00:00:05 | B7: 0.244
A8: 00:00:06 | B8: 0.247
A9: 00:00:07 | B9: 0.249
A10: 00:00:08 | B10: 0.251
A11: 00:00:09 | B11: 0.253
A12: 00:00:10 | B12: 0.254
A13: 00:00:11 | B13: 0.255
A14: 00:00:12 | B14: 0.257
A15: 00:00:13 | B15: 0.258
A16: 00:00:14 | B16: 0.259
A17: 00:00:15 | B17: 0.26
A18: 00:00:16 | B18: 0.261
A19: 00:00:17 | B19: 0.262
A20: 00:00:18 | B20: 0.263
A21: 00:00:19 | B21: 0.264
A22: 00:00:20 | B22: 0.265
A23: 00:00:21 | B23: 0.266
A24: 00:00:22 | B24: 0.267
A25: 00:00:23 | B25: 0.268
A26: 00:00:24 | B26: 0.269
A27: 00:00:25 | B27: 0.27
A28: 00:00:26 | B28: 0.09
A29: 00:00:27 | B29: 0.085

Sheet Example 02
B1: pCh 06:41
A2: 00:00:00 | B2: 0.081
A3: 00:00:01 | B3: 0.184
A4: 00:00:02 | B4: 0.224
A5: 00:00:03 | B5: 0.239
A6: 00:00:04 | B6: 0.246
A7: 00:00:05 | B7: 0.25
A8: 00:00:06 | B8: 0.253
A9: 00:00:07 | B9: 0.255
A10: 00:00:08 | B10: 0.257
A11: 00:00:09 | B11: 0.259
A12: 00:00:10 | B12: 0.26
A13: 00:00:11 | B13: 0.261
A14: 00:00:12 | B14: 0.263
A15: 00:00:13 | B15: 0.264
A16: 00:00:14 | B16: 0.265
A17: 00:00:15 | B17: 0.266
A18: 00:00:16 | B18: 0.268
A19: 00:00:17 | B19: 0.269
A20: 00:00:18 | B20: 0.27
A21: 00:00:19 | B21: 0.271
A22: 00:00:20 | B22: 0.272
A23: 00:00:21 | B23: 0.273
A24: 00:00:22 | B24: 0.275
A25: 00:00:23 | B25: 0.276
A26: 00:00:24 | B26: 0.277
A27: 00:00:25 | B27: 0.092
A28: 00:00:26 | B28: 0.083

Sheet Example 03
B1: pCh 10:02
A2: 00:00:00 | B2: 0.078
A3: 00:00:01 | B3: 0.16
A4: 00:00:02 | B4: 0.222
A5: 00:00:03 | B5: 0.242
A6: 00:00:04 | B6: 0.251
A7: 00:00:05 | B7: 0.256
A8: 00:00:06 | B8: 0.26
A9: 00:00:07 | B9: 0.263
A10: 00:00:08 | B10: 0.265
A11: 00:00:09 | B11: 0.268
A12: 00:00:10 | B12: 0.27
A13: 00:00:11 | B13: 0.273
A14: 00:00:12 | B14: 0.275
A15: 00:00:13 | B15: 0.277
A16: 00:00:14 | B16: 0.279
A17: 00:00:15 | B17: 0.281
A18: 00:00:16 | B18: 0.283
A19: 00:00:17 | B19: 0.286
A20: 00:00:18 | B20: 0.288
A21: 00:00:19 | B21: 0.29
A22: 00:00:20 | B22: 0.292
A23: 00:00:21 | B23: 0.294
A24: 00:00:22 | B24: 0.296
A25: 00:00:23 | B25: 0.299
A26: 00:00:24 | B26: 0.3
A27: 00:00:25 | B27: 0.104
A28: 00:00:26 | B28: 0.085

Sheet Example 04
B1: pCh 12:01
A2: 0 | B2: 0.076
A3: 1.15740695e-05 | B3: 0.11
A4: 2.314814628e-05 | B4: 0.201
A5: 3.472222306e-05 | B5: 0.227
A6: 4.629629257e-05 | B6: 0.237
A7: 5.787036935e-05 | B7: 0.243
A8: 6.944443885e-05 | B8: 0.247
A9: 8.101851563e-05 | B9: 0.25
A10: 9.259259241e-05 | B10: 0.253
A11: 0.0001041666619 | B11: 0.256
A12: 0.0001157407387 | B12: 0.259
A13: 0.0001273148155 | B13: 0.261
A14: 0.000138888885 | B14: 0.264
A15: 0.0001504629618 | B15: 0.267
A16: 0.0001620370313 | B16: 0.27
A17: 0.000173611108 | B17: 0.272
A18: 0.0001851851848 | B18: 0.275
A19: 0.0001967592543 | B19: 0.278
A20: 0.0002083333311 | B20: 0.281
A21: 0.0002199074079 | B21: 0.283
A22: 0.0002314814774 | B22: 0.286
A23: 0.0002430555542 | B23: 0.289
A24: 0.0002546296309 | B24: 0.291
A25: 0.0002662037004 | B25: 0.294
A26: 0.0002777777772 | B26: 0.297
A27: 0.0002893518467 | B27: 0.299
A28: 0.0003009259235 | B28: 0.087

Sheet Example 05
B1: pCh 15:00
A2: 0 | B2: 0.079
A3: 1.15740695e-05 | B3: 0.165
A4: 2.314814628e-05 | B4: 0.201
A5: 3.472221579e-05 | B5: 0.215
A6: 4.629629257e-05 | B6: 0.223
A7: 5.787036935e-05 | B7: 0.229
A8: 6.944443885e-05 | B8: 0.234
A9: 8.101851563e-05 | B9: 0.238
A10: 9.259259241e-05 | B10: 0.242
A11: 0.0001041666619 | B11: 0.247
A12: 0.0001157407387 | B12: 0.251
A13: 0.0001273148082 | B13: 0.254
A14: 0.000138888885 | B14: 0.258
A15: 0.0001504629618 | B15: 0.262
A16: 0.0001620370313 | B16: 0.266
A17: 0.000173611108 | B17: 0.27
A18: 0.0001851851848 | B18: 0.27
A19: 0.0001967592543 | B19: 0.274
A20: 0.0002083333311 | B20: 0.279
A21: 0.0002199074079 | B21: 0.283
A22: 0.0002314814774 | B22: 0.287
A23: 0.0002430555542 | B23: 0.291
A24: 0.0002546296237 | B24: 0.295
A25: 0.0002662037004 | B25: 0.299
A26: 0.0002777777772 | B26: 0.303
A27: 0.0002893518467 | B27: 0.307
A28: 0.0003009259235 | B28: 0.092

Sheet Example 06
B1: pCh 18:00
A2: 0 | B2: 0.077
A3: 1.157407678e-05 | B3: 0.093
A4: 2.314815356e-05 | B4: 0.134
A5: 3.472222306e-05 | B5: 0.156
A6: 4.629629984e-05 | B6: 0.169
A7: 5.787037662e-05 | B7: 0.18
A8: 6.944444613e-05 | B8: 0.189
A9: 8.101852291e-05 | B9: 0.196
A10: 9.259259241e-05 | B10: 0.204
A11: 0.0001041666692 | B11: 0.212
A12: 0.000115740746 | B12: 0.219
A13: 0.0001273148155 | B13: 0.227
A14: 0.0001388888923 | B14: 0.235
A15: 0.000150462969 | B15: 0.242
A16: 0.0001620370385 | B16: 0.25
A17: 0.0001736111153 | B17: 0.258
A18: 0.0001851851921 | B18: 0.265
A19: 0.0001967592616 | B19: 0.274
A20: 0.0002083333384 | B20: 0.282
A21: 0.0002199074079 | B21: 0.29
A22: 0.0002314814847 | B22: 0.298
A23: 0.0002430555614 | B23: 0.307
A24: 0.0002546296309 | B24: 0.316
A25: 0.0002662037077 | B25: 0.324
A26: 0.0002777777845 | B26: 0.333
A27: 0.000289351854 | B27: 0.342
A28: 0.0003009259308 | B28: 0.107
A29: 0.0003125000003 | B29: 0.088

Sheet Example 07
B1: pCh 19:52
A2: 0 | B2: 0.058
A3: 1.15740695e-05 | B3: 0.058
A4: 2.314814628e-05 | B4: 0.069
A5: 3.472221579e-05 | B5: 0.08
A6: 4.629629257e-05 | B6: 0.09
A7: 5.787036935e-05 | B7: 0.098
A8: 6.944443885e-05 | B8: 0.106
A9: 8.101851563e-05 | B9: 0.113
A10: 9.259259241e-05 | B10: 0.118
A11: 0.0001041666619 | B11: 0.124
A12: 0.0001157407387 | B12: 0.13
A13: 0.0001273148082 | B13: 0.135
A14: 0.000138888885 | B14: 0.141
A15: 0.0001504629618 | B15: 0.146
A16: 0.0001620370313 | B16: 0.152
A17: 0.000173611108 | B17: 0.16
A18: 0.0001851851848 | B18: 0.165
A19: 0.0001967592543 | B19: 0.17
A20: 0.0002083333311 | B20: 0.175
A21: 0.0002199074079 | B21: 0.181
A22: 0.0002314814774 | B22: 0.186
A23: 0.0002430555542 | B23: 0.191
A24: 0.0002546296237 | B24: 0.197
A25: 0.0002662037004 | B25: 0.202
A26: 0.0002777777772 | B26: 0.208
A27: 0.0002893518467 | B27: 0.206
A28: 0.0003009259235 | B28: 0.092

Sheet 16040701_MTM_0071
A1: [1] // Info
A2: Date | B2: 2064-04-08
A3: Time | B3: 09:33:31
A5: [2] // Start Values
A6: Ts | B6: -0.01 | C6: Temperatur der Stellfläche [°C]
A7: P0 | B7: 0.1 | C7: Kammerdruck zum Testbeginn [mBar]
A9: [3] // Constant Values:
A10: N | B10: 61 | C10: Anzahl der Vials
A11: Ap | B11: 3.14 | C11: innere Querschnittsfläche des Vials[cm²]
A12: Av | B12: 2.8 | C12: äußerer Querschnittsfläche des Vials[cm²]
A13: Vc | B13: 56 | C13: Kammervolumen[l]
A14: M0 | B14: 3 | C14: Produktmasse zu Beginn der Sublimation [g]
A15: Dp | B15: 1 | C15: Produktdichte [g/ml]
A16: Ep | B16: 0.97 | C16: Produktporosität [dimensionslos]
A17: Hs | B17: 660 | C17: Sublimationsenthalpie [torr * l / mol]
A19: [4] // Measurement Values
A20: 0 | B20: 0.1027
A21: 100 | B21: 0.1027
A22: 200 | B22: 0.1027
A23: 300 | B23: 0.1027
A24: 400 | B24: 0.1027
A25: 500 | B25: 0.10294
A26: 600 | B26: 0.10294
A27: 700 | B27: 0.10319
A28: 800 | B28: 0.10343
A29: 900 | B29: 0.10343
A30: 1000 | B30: 0.10343
A31: 1100 | B31: 0.10343
A32: 1200 | B32: 0.10343
A33: 1300 | B33: 0.10319
A34: 1400 | B34: 0.10319
A35: 1500 | B35: 0.10319
A36: 1600 | B36: 0.10319
A37: 1700 | B37: 0.10319
A38: 1800 | B38: 0.10319
A39: 1900 | B39: 0.10343
A40: 2000 | B40: 0.10343
A41: 2100 | B41: 0.10343
A42: 2200 | B42: 0.10343
A43: 2300 | B43: 0.10368
A44: 2400 | B44: 0.10368
A45: 2500 | B45: 0.10368
A46: 2600 | B46: 0.10368
A47: 2700 | B47: 0.10368
A48: 2800 | B48: 0.10343
A49: 2900 | B49: 0.10343
A50: 3000 | B50: 0.10368
A51: 3100 | B51: 0.10368
A52: 3200 | B52: 0.10368
A53: 3300 | B53: 0.10343
A54: 3400 | B54: 0.10343
A55: 3500 | B55: 0.10343
A56: 3600 | B56: 0.10343
A57: 3700 | B57: 0.10343
A58: 3800 | B58: 0.10343
A59: 3900 | B59: 0.10343
A60: 4000 | B60: 0.10343
A61: 4100 | B61: 0.10343
A62: 4200 | B62: 0.10343
A63: 4300 | B63: 0.10343
A64: 4400 | B64: 0.10343
A65: 4500 | B65: 0.10343
A66: 4600 | B66: 0.10343
A67: 4700 | B67: 0.10343
A68: 4800 | B68: 0.10343
A69: 4900 | B69: 0.10343
A70: 5000 | B70: 0.10343
A71: 5100 | B71: 0.10343
A72: 5200 | B72: 0.10343
A73: 5300 | B73: 0.10343
A74: 5400 | B74: 0.10343
A75: 5500 | B75: 0.10368
A76: 5600 | B76: 0.10368
A77: 5700 | B77: 0.10368
A78: 5800 | B78: 0.10368
A79: 5900 | B79: 0.10368
A80: 6000 | B80: 0.10368
A81: 6100 | B81: 0.10368
A82: 6200 | B82: 0.10368
A83: 6300 | B83: 0.10368
A84: 6400 | B84: 0.10392
A85: 6500 | B85: 0.10392
A86: 6600 | B86: 0.10392
A87: 6700 | B87: 0.10392
A88: 6800 | B88: 0.10392
A89: 6900 | B89: 0.10417
A90: 7000 | B90: 0.10417
A91: 7100 | B91: 0.10392
A92: 7200 | B92: 0.10392
A93: 7300 | B93: 0.10368
A94: 7400 | B94: 0.10368
A95: 7500 | B95: 0.10368
A96: 7600 | B96: 0.10368
A97: 7700 | B97: 0.10368
A98: 7800 | B98: 0.10392
A99: 7900 | B99: 0.10392
A100: 8000 | B100: 0.10392
A101: 8100 | B101: 0.10417
A102: 8200 | B102: 0.10417
A103: 8300 | B103: 0.10417
A104: 8400 | B104: 0.10417
A105: 8500 | B105: 0.10417
A106: 8600 | B106: 0.10417
A107: 8700 | B107: 0.10417
A108: 8800 | B108: 0.10417
A109: 8900 | B109: 0.10417
A110: 9000 | B110: 0.10417
A111: 9100 | B111: 0.10417
A112: 9200 | B112: 0.10417
A113: 9300 | B113: 0.10417
A114: 9400 | B114: 0.10441
A115: 9500 | B115: 0.10441
A116: 9600 | B116: 0.10441
A117: 9700 | B117: 0.10466
A118: 9800 | B118: 0.10466
A119: 9900 | B119: 0.10466
A120: 10000 | B120: 0.10441
A121: 10100 | B121: 0.10417
A122: 10200 | B122: 0.10417
A123: 10300 | B123: 0.10417
A124: 10400 | B124: 0.10417
A125: 10500 | B125: 0.10417
A126: 10600 | B126: 0.10417
A127: 10700 | B127: 0.10417
A128: 10800 | B128: 0.10417
A129: 10900 | B129: 0.10417
A130: 11000 | B130: 0.10441
A131: 11100 | B131: 0.10441
A132: 11200 | B132: 0.10441
A133: 11300 | B133: 0.10441
A134: 11400 | B134: 0.10441
A135: 11500 | B135: 0.10466
A136: 11600 | B136: 0.10466
A137: 11700 | B137: 0.10466
A138: 11800 | B138: 0.10466
A139: 11900 | B139: 0.10466
A140: 12000 | B140: 0.10466
A141: 12100 | B141: 0.10441
A142: 12200 | B142: 0.10441
A143: 12300 | B143: 0.10466
A144: 12400 | B144: 0.10466
A145: 12500 | B145: 0.10441
A146: 12600 | B146: 0.10441
A147: 12700 | B147: 0.10441
A148: 12800 | B148: 0.10441
A149: 12900 | B149: 0.10466
A150: 13000 | B150: 0.10466
A151: 13100 | B151: 0.10466
A152: 13200 | B152: 0.10441
A153: 13300 | B153: 0.10441
A154: 13400 | B154: 0.10441
A155: 13500 | B155: 0.10417
A156: 13600 | B156: 0.10441
A157: 13700 | B157: 0.10441
A158: 13800 | B158: 0.10441
A159: 13900 | B159: 0.10441
A160: 14000 | B160: 0.10441
A161: 14100 | B161: 0.10441
A162: 14200 | B162: 0.10441
A163: 14300 | B163: 0.10441
A164: 14400 | B164: 0.10441
A165: 14500 | B165: 0.10441
A166: 14600 | B166: 0.10441
A167: 14700 | B167: 0.10441
A168: 14800 | B168: 0.10441
A169: 14900 | B169: 0.10441
A170: 15000 | B170: 0.10441
A171: 15100 | B171: 0.10441
A172: 15200 | B172: 0.10441
A173: 15300 | B173: 0.10441
A174: 15400 | B174: 0.10441
A175: 15500 | B175: 0.10441
A176: 15600 | B176: 0.10441
A177: 15700 | B177: 0.10441
A178: 15800 | B178: 0.10441
A179: 15900 | B179: 0.10441
A180: 16000 | B180: 0.10441
A181: 16100 | B181: 0.10441
A182: 16200 | B182: 0.10441
A183: 16300 | B183: 0.10441
A184: 16400 | B184: 0.10441
A185: 16500 | B185: 0.10441
A186: 16600 | B186: 0.10441
A187: 16700 | B187: 0.10466
A188: 16800 | B188: 0.10466
A189: 16900 | B189: 0.10466
A190: 17000 | B190: 0.10466
A191: 17100 | B191: 0.10466
A192: 17200 | B192: 0.10466
A193: 17300 | B193: 0.10466
A194: 17400 | B194: 0.10466
A195: 17500 | B195: 0.10466
A196: 17600 | B196: 0.1049
A197: 17700 | B197: 0.1049
A198: 17800 | B198: 0.1049
A199: 17900 | B199: 0.1049
A200: 18000 | B200: 0.1049
A201: 18100 | B201: 0.1049
A202: 18200 | B202: 0.1049
A203: 18300 | B203: 0.1049
... 719 more rows
